Cogmind - Beta 11.1 @@@ ROGUE MODE // 2022.06.04 @ 00:24:57 Player: onyhow Result: Destroyed by Y-64 Sentinel with Wave Gun Performance ------------- Evolutions (1) 500 Regions Visited (6) 1200 Robots Destroyed (56) 280 Value Destroyed (1413) 1413 Prototype IDs (7) 140 Alien Tech Used (0) 0 Bonus (809) 809 TOTAL SCORE: 4342 Bonus ------- High Alert Combat Kills 22 Follower Combat Kills 187 Met Imprinter 300 Was Imprinted 300 Cogmind --------- Core Integrity 0/400 Matter 200/300 Energy 19/100 System Corruption 0% Temperature Warning (302) Movement Treading (240) Ox1 Location -6/Proximity Caves Parts ------- > --- POWER (1) -------- (None) > --- PROPULSION (2) --- Light Treads Improved Treads > --- UTILITY (4) ------ High-capacity Storage Unit Structural Scanner Hardened Medium Armor Plating Makeshift Armor Plating > --- WEAPON (2) ------- Field Laser RU-N14's Throwing Claymores > --- INVENTORY (20) --- Armored Treads Armored Treads Armored Treads Armored Treads Experimental Sensor Array Hardened Medium Armor Plating Hardened Medium Armor Plating Hardened Medium Armor Plating Authchip [R/Combat] Mobile Refinery Mk. CCLXVII Field Recycling Unit (100) Heavy Battle Rifle RU-N14's Throwing Claymores (10) RU-N14's Throwing Claymores (10) RU-N14's Throwing Claymores (10) Power Sword Phasing Sabre Peak State ------------ > --- POWER ------------ Makeshift Power Source > --- PROPULSION ------- Light Treads Improved Treads > --- UTILITY ---------- Improved Heat Sink High-capacity Storage Unit Structural Scanner Hardened Medium Armor Plating > --- WEAPON ----------- Heavy Riot Gun Heavy Rocket Launcher > --- INVENTORY -------- Armored Treads Armored Treads Armored Treads Armored Treads Experimental Sensor Array Hardened Medium Armor Plating Hardened Medium Armor Plating Hardened Medium Armor Plating Makeshift Armor Plating Authchip [R/Combat] Mobile Refinery Mk. CCLXVII Field Recycling Unit Field Laser Heavy Battle Rifle RU-N14's Throwing Claymores RU-N14's Throwing Claymores RU-N14's Throwing Claymores RU-N14's Throwing Claymores Power Sword Phasing Sabre [Rating: 32] Favorites ----------- Power Improved Ion Engine Engine Improved Ion Engine Propulsion Light Treads Treads Light Treads Leg Aluminum Leg Utility High-capacity Storage Unit Device Structural Scanner Storage High-capacity Storage Unit Protection Hardened Medium Armor Plating Weapon Advanced Beam Cannon Energy Gun Field Laser Energy Cannon Advanced Beam Cannon Ballistic Gun Assault Rifle Launcher Grenade Launcher Special Weapon RU-N14's Throwing Claymores Slashing Weapon Phasing Sabre Build | -11 -10 -10 -9 -9 -7 -6 ------- Run | Scr Mat Min Mat Min Zio Pro Slots Evolved 2 | . . . 2 . . . Power . | . . . . . . . Propulsion . | . . . . . . . Utility 2 | . . . 2 . . . Weapon . | . . . . . . . Parts Attached 73 | 7 8 5 38 . 10 5 Power 7 | 1 . 1 3 . 1 1 Engine 7 | 1 . 1 3 . 1 1 Core . | . . . . . . . Reactor . | . . . . . . . Propulsion 19 | 2 2 . 14 . 1 . Treads 14 | . 2 . 11 . 1 . Leg 5 | 2 . . 3 . . . Wheel . | . . . . . . . Hover . | . . . . . . . Flight . | . . . . . . . Utility 17 | 1 2 2 11 . . 1 Device 8 | . 1 2 5 . . . Storage 2 | 1 1 . . . . . Processor . | . . . . . . . Hackware . | . . . . . . . Protection 7 | . . . 6 . . 1 Artifact . | . . . . . . . Weapon 30 | 3 4 2 10 . 8 3 Energy Gun 15 | 2 2 1 5 . 4 1 Energy Cannon 4 | . . . 4 . . . Ballistic Gun 5 | 1 1 1 1 . 1 . Ballistic Cannon . | . . . . . . . Launcher 3 | . 1 . . . 1 1 Special Weapon 2 | . . . . . 1 1 Impact Weapon . | . . . . . . . Slashing Weapon 1 | . . . . . 1 . Piercing Weapon . | . . . . . . . Special Melee Weapon . | . . . . . . . Unidentified Prototypes 5 | . . 1 2 . 2 . Corrupted Parts 1 | . . 1 . . . . System Corruption 6 | . . 6 . . . . Parts Lost 14 | . . . 10 . . 4 Power 2 | . . . 1 . . 1 Propulsion 5 | . . . 5 . . . Utility 1 | . . . . . . 1 Weapon 6 | . . . 4 . . 2 Highest Loss Streak 6 | . . . 6 . . 4 To Critical Strikes . | . . . . . . . Average Slot Usage (%) 98 | . 95 98 98 100 99 100 Engine 11 | . 12 12 10 11 11 11 Treads 20 | . 3 28 19 22 22 22 Leg 2 | . 24 . 2 . . . Device 22 | . 12 14 25 22 22 22 Storage 11 | . 14 14 11 11 11 11 Protection 7 | . . . 5 11 11 11 Energy Gun 11 | . 14 14 9 . 11 21 Energy Cannon 7 | . . . 11 22 7 . Ballistic Gun 3 | . 9 14 1 . 2 . Naked Turns . | . . . . . . . Heaviest Build 68 | 13 44 49 65 65 68 64 Greatest Support 43 | 20 40 40 43 40 43 43 Greatest Overweight (x) 4 | 1 4 1 2 1 1 1 Average Overweight (x) . | . . 1 1 1 1 1 Largest Inventory Capacity 20 | 8 20 20 20 20 20 20 Average Capacity 19 | 7 9 20 20 20 20 20 Most Carried 20 | 5 11 20 20 20 20 20 Average Carried 18 | 2 6 11 19 20 19 19 Final Capacity 20 | 8 20 20 20 20 20 20 Final Carried 20 | 4 11 20 20 20 20 17 Class Distribution -------------------- 80% | Mutant 19% | Scavenger-Mutant Dominant Class ---------------- Mutant | -10/Materials Mutant | -10/Mines Scavenger-Mutant | -9/Materials Mutant | -9/Mines Mutant | -7/Zion Mutant | -6/Proximity Caves Resources | -11 -10 -10 -9 -9 -7 -6 ----------- Run | Scr Mat Min Mat Min Zio Pro Matter Collected 1033 | 216 194 79 444 . 48 52 Remotely . | . . . . . . . Salvage Created 1768 | . 118 79 1456 . . 115 Parts 106 | . 6 1 93 . . 6 Haulers Intercepted 2 | . . . 2 . . . Recyclers Shooed . | . . . . . . . Parts Field Recycled 20 | . . . 20 . . . Retrieved Matter 150 | . . . 150 . . . Parts Self-Destructed 8 | . . . . . 2 6 Prevented 3 | . . . . . . 3 Kills | -11 -10 -10 -9 -9 -7 -6 ------- Run | Scr Mat Min Mat Min Zio Pro Combat Hostiles Destroyed 42 | . 5 2 28 . . 7 Guns 18 | . 1 2 13 . . 2 Cannons 14 | . . . 14 . . . AOE 9 | . 4 . . . . 5 Classes Destroyed 8 | . 3 . 5 . . . Worker 4 | . 1 . 3 . . . Hauler 2 | . . . 2 . . . Recycler 2 | . . . 2 . . . Watcher 6 | . 1 . 5 . . . Swarmer 16 | . . . 12 . . 4 Grunt 17 | . 5 2 7 . . 3 Duelist 1 | . . . 1 . . . Sentry 8 | . . . 8 . . . Best Kill Streak 7 | . 5 1 6 . . 7 Combat Bots Only 7 | . 4 1 5 . . 7 Max Kills in Single Turn 3 | . 1 1 2 . . 3 Gunslinging . | . . . . . . . Exploded 3 | . 1 . . . . 3 Melee . | . . . . . . . Uniques/NPCs Destroyed . | . . . . . . . Combat | -11 -10 -10 -9 -9 -7 -6 -------- Run | Scr Mat Min Mat Min Zio Pro Damage Taken 2982 | . 363 289 1647 . . 683 Core 585 | . 78 94 312 . . 101 Absorbed by Shields . | . . . . . . . Core Remaining (%) 65 | 100 . 31 . . . . Volleys Fired 132 | . 15 13 97 . 1 6 Largest 2 | . 2 2 2 . 2 2 Hottest 136 | . 80 60 136 . 136 99 Shots Fired 242 | . 30 26 172 . 2 12 Gun 168 | . 18 26 118 . . 6 Cannon 56 | . . . 54 . 2 . Launcher 17 | . 12 . . . . 5 Special 1 | . . . . . . 1 Kinetic 41 | . 3 13 25 . . . Thermal 141 | . 15 13 110 . 2 1 Explosive 18 | . 12 . . . . 6 Electromagnetic 42 | . . . 37 . . 5 Robot Hit Streak 10 | . 5 6 10 . . 4 Robot Miss Streak 4 | . 3 2 3 . . 4 Penetration Max . | . . . . . . . Secondary Targets . | . . . . . . . Shots Hit Robots 158 | . 15 18 120 . . 5 Core Hits 93 | . 15 5 55 . . 18 Critical Kills . | . . . . . . . Critical Parts Destroyed 1 | . . . 1 . . . Critical Strikes 7 | . . . 6 . . 1 Burn 5 | . . . 5 . . . Destroy 1 | . . . 1 . . . Sever 1 | . . . . . . 1 Melee Attacks 4 | . . . . . 4 . Impact . | . . . . . . . Slashing 4 | . . . . . 4 . Piercing . | . . . . . . . Sneak Attacks . | . . . . . . . Combat Hostiles . | . . . . . . . Follow-up Attacks . | . . . . . . . Damage Inflicted 4211 | . 564 206 2180 . . 1261 Guns 1662 | . 88 206 1305 . . 63 Cannons 779 | . . . 779 . . . Explosions 1738 | . 476 . 94 . . 1168 Melee . | . . . . . . . Ramming 2 | . . . 2 . . . Kinetic 366 | . . 94 272 . . . Thermal 1551 | . 88 112 1335 . . 16 Explosive 1644 | . 476 . . . . 1168 Electromagnetic 618 | . . . 571 . . 47 Impact . | . . . . . . . Slashing 30 | . . . . . . 30 Piercing . | . . . . . . . Highest Corruption 6 | . . 6 . . . . Average Corruption 6 | . . 6 . . . . Corruption Purged . | . . . . . . . Corruption Blocked . | . . . . . . . Overload Shots . | . . . . . . . Overflow Damage 91 | . 17 . 48 . . 26 Projectiles 11 | . . . 11 . . . Explosions 80 | . 17 . 37 . . 26 Melee . | . . . . . . . Knockbacks 1 | . . . 1 . . . Impact 1 | . . . 1 . . . Kinetic . | . . . . . . . Secondary . | . . . . . . . Self-Inflicted Damage 274 | . 107 . 118 . . 49 Shots 10 | . 6 . 2 . . 2 Rammed . | . . . . . . . Targets Rammed 1 | . . . 1 . . . Kicked 1 | . . . 1 . . . Crushed . | . . . . . . . Highest Temperature 275 | . 123 96 170 . 42 275 Average Temperature 50 | . 55 41 42 . 24 145 Received Heat Transfer 1026 | . 144 168 489 . . 225 Siege Activations . | . . . . . . . Robots Corrupted . | . . . . . . . Combat Hostiles . | . . . . . . . Parts Fried 4 | . . . 4 . . . Impact Corruptions . | . . . . . . . Robots Melted 1 | . . . 1 . . . Combat Hostiles 1 | . . . 1 . . . Parts Melted 7 | . . . 7 . . . Heat Transferred 3759 | . 200 250 3272 . . 37 Parts Sabotaged . | . . . . . . . Parts Stolen . | . . . . . . . Parts Stripped . | . . . . . . . Power Chain Reactions 4 | . . . 4 . . . Missiles Intercepted . | . . . . . . . Alert | -11 -10 -10 -9 -9 -7 -6 ------- Run | Scr Mat Min Mat Min Zio Pro Peak Influence 479 | . 403 65 479 65 . . Initial 65 | . . 31 25 65 . . Average 148 | . 197 32 175 65 . . Maximum Alert Level 2 | . 2 . 2 . . . Low Security (%) 62 | 100 47 100 54 100 . . Level 1 32 | . 51 . 38 . . . Level 2 5 | . 1 . 7 . . . Level 3 . | . . . . . . . Level 4 . | . . . . . . . Level 5 . | . . . . . . . High Security . | . . . . . . . Max Security . | . . . . . . . Squads Dispatched 4 | . 3 . 1 . . . Investigation 2 | . 1 . 1 . . . Extermination . | . . . . . . . Reinforcement 2 | . 2 . . . . . Assault . | . . . . . . . Garrison . | . . . . . . . Intercept . | . . . . . . . Searches Triggered . | . . . . . . . Construction Impeded . | . . . . . . . Haulers Reinforced . | . . . . . . . Active Scanning Responses . | . . . . . . . Cargo Convoy Interrupts . | . . . . . . . Stealth | -11 -10 -10 -9 -9 -7 -6 --------- Run | Scr Mat Min Mat Min Zio Pro Distress Signals 6 | . 1 . 5 . . . Communications Jammed . | . . . . . . . Distress Signals . | . . . . . . . Times Spotted 79 | . 13 3 47 . . 16 Peak Tracking Total 10 | . 6 2 6 . . 10 Tactical Retreats 4 | . . 1 3 . . . Traps | -11 -10 -10 -9 -9 -7 -6 ------- Run | Scr Mat Min Mat Min Zio Pro Traps Triggered 4 | . 2 1 1 . . . Indirectly . | . . . . . . . Trap Hack Attempts . | . . . . . . . Triggered . | . . . . . . . Disarmed . | . . . . . . . Reprogrammed . | . . . . . . . Reused . | . . . . . . . Traps Extracted . | . . . . . . . Installed . | . . . . . . . Triggered . | . . . . . . . Machines | -11 -10 -10 -9 -9 -7 -6 ---------- Run | Scr Mat Min Mat Min Zio Pro Machines Disabled 3 | . . . 1 . . 2 Max in Single Turn 2 | . . . 1 . . 2 Machines Sabotaged . | . . . . . . . Garrisons Compromised . | . . . . . . . Overloaded Fab Kills . | . . . . . . . Hacking | -11 -10 -10 -9 -9 -7 -6 --------- Run | Scr Mat Min Mat Min Zio Pro Machines Accessed 16 | . 4 1 11 . . . Terminals 13 | . 4 . 9 . . . Fabricators . | . . . . . . . Repair Stations . | . . . . . . . Recycling Units . | . . . . . . . Scanalyzers 2 | . . . 2 . . . Garrison Access . | . . . . . . . Total Hacks 49 | . 12 1 36 . . . Successful 18 | . 5 1 12 . . . Failed 31 | . 7 . 24 . . . Catastrophic 6 | . 1 . 5 . . . Database Lockouts . | . . . . . . . Manual 32 | . 10 . 21 . 1 . Terminals 38 | . 12 . 26 . . . Fabricators . | . . . . . . . Repair Stations . | . . . . . . . Recycling Units . | . . . . . . . Scanalyzers 10 | . . . 10 . . . Garrison Access . | . . . . . . . Terminal Hacks 12 | . 5 1 6 . . . Part Schematic 2 | . 1 . 1 . . . Prototype ID Bank 1 | . 1 . . . . . Open Door 1 | . . 1 . . . . Branch Access Points 1 | . 1 . . . . . Alert Level 1 | . . . 1 . . . Unreport Threat 4 | . 1 . 3 . . . Zone Layout 2 | . 1 . 1 . . . Fabricator Hacks . | . . . . . . . Repair Station Hacks . | . . . . . . . Recycling Unit Hacks . | . . . . . . . Scanalyzer 6 | . . . 6 . . . Insert Component 3 | . . . 3 . . . Analyze 3 | . . . 3 . . . Garrison Access Hacks . | . . . . . . . Unauthorized Hacks . | . . . . . . . Terminals . | . . . . . . . Fabricators . | . . . . . . . Repair Stations . | . . . . . . . Recycling Units . | . . . . . . . Scanalyzers . | . . . . . . . Garrison Access . | . . . . . . . Data Cores Recovered . | . . . . . . . Used . | . . . . . . . Hacking Detections 15 | . 4 . 11 . . . Full Trace Events 1 | . 1 . . . . . Feedback Events . | . . . . . . . Feedback Blocked . | . . . . . . . Robot Schematics Acquired 3 | . . . . . 3 . Robots Built . | . . . . . . . Authchips . | . . . . . . . Time . | . . . . . . . Total Robot Build Rating . | . . . . . . . Part Schematics Acquired 19 | . 1 . 4 . 14 . Parts Built . | . . . . . . . Authchips . | . . . . . . . Time . | . . . . . . . Total Part Build Rating . | . . . . . . . Parts Repaired . | . . . . . . . Time . | . . . . . . . Parts Recycled . | . . . . . . . Recycled Matter . | . . . . . . . Retrieved Matter . | . . . . . . . Retrieved Components . | . . . . . . . Parts Scanalyzed 3 | . . . 3 . . . Part Schematics Acquired 3 | . . . 3 . . . Parts Damaged 1 | . . . 1 . . . Bothacking | -11 -10 -10 -9 -9 -7 -6 ------------ Run | Scr Mat Min Mat Min Zio Pro Used RIF Installer . | . . . . . . . Robots Hacked . | . . . . . . . Non-combat . | . . . . . . . Combat . | . . . . . . . Robot Hacks Applied . | . . . . . . . Relay Couplers Released . | . . . . . . . Fabnet Peak Effective % . | . . . . . . . Robots Rewired . | . . . . . . . Allies Hacked . | . . . . . . . Hacks Repelled . | . . . . . . . Allies | -11 -10 -10 -9 -9 -7 -6 -------- Run | Scr Mat Min Mat Min Zio Pro Total Allies 4 | . . . . . 4 . Largest Group 4 | . . . . . 4 4 Highest-Rated Group 149 | . . . . . 149 149 Highest-Rated Ally 38 | . . . . . 38 38 Total Orders . | . . . . . . . Ally Attacks 23 | . . . . . . 23 Total Damage 567 | . . . . . . 567 Kills 6 | . . . . . . 6 Allies Corrupted 1 | . . . . . . 1 Allies Melted . | . . . . . . . Intel | -11 -10 -10 -9 -9 -7 -6 ------- Run | Scr Mat Min Mat Min Zio Pro Robot Analysis Total . | . . . . . . . Derelict Logs Recovered 5 | . . 2 . 1 2 . Drone Launches . | . . . . . . . Drone Recoveries . | . . . . . . . Exploration | -11 -10 -10 -9 -9 -7 -6 ------------- Run | Scr Mat Min Mat Min Zio Pro Turns Passed 7548 | 67 425 707 2885 70 3066 328 Spaces Moved 3004 | 38 271 270 1019 30 1254 122 Core 4 | 4 . . . . . . Treads 2635 | . 19 270 940 30 1254 122 Legs 365 | 34 252 . 79 . . . Wheels . | . . . . . . . Hover . | . . . . . . . Flight . | . . . . . . . Fastest Speed 50 | 50 120 240 240 240 240 240 Average Speed 229 | 127 129 240 241 240 240 240 Slowest Speed 400 | 190 400 240 260 240 240 240 Overloaded Moves . | . . . . . . . Propulsion Burnouts . | . . . . . . . Robots Hopped . | . . . . . . . Cave-ins Triggered . | . . . . . . . Exploration Rate (%) 45 | 3 54 48 86 15 89 25 Regions Visited 6 Branch Regions 4 Pre-discovered Areas 3 | . . 1 . 1 1 . Known Exits Taken 2 | . 1 . . . 1 . Unknown Exits Taken 4 | 1 . 1 1 1 . . Scrap Searched 4 | . . . . . 3 1 Spaces Dug . | . . . . . . . Terrain Destroyed 140 | . 83 . 31 . . 26 Melee . | . . . . . . . Projectile . | . . . . . . . AOE 140 | . 83 . 31 . . 26 Terrain Rammed . | . . . . . . . Walls Destroyed . | . . . . . . . Machines Disabled . | . . . . . . . Actions | -11 -10 -10 -9 -9 -7 -6 --------- Run | Scr Mat Min Mat Min Zio Pro Total 3429 | 56 315 302 1273 29 1309 145 Wait 70 | 2 7 5 43 . 3 10 Move 2998 | 37 270 269 1018 29 1253 122 Hop . | . . . . . . . Pick Up 97 | 10 13 10 44 . 19 1 Fast Attach . | . . . . . . . Attach 30 | 6 4 1 13 . 3 3 Detach . | . . . . . . . Swap 43 | 1 4 4 25 . 7 2 Drop 54 | . 2 . 32 . 19 1 Fire 132 | . 15 13 97 . 1 6 Melee 4 | . . . . . 4 . Ram . | . . . . . . . Kick 1 | . . . 1 . . . Crush . | . . . . . . . Escape Stasis . | . . . . . . . Rewire . | . . . . . . . Trap . | . . . . . . . Miscellaneous . | . . . . . . . Route ------- -11/Scrapyard -10/Materials (discovered 3 exits: *Mat / *Min x2) -10/Mines -9/Materials (discovered 5 exits: *Mat x3 / [*Min x2]) -9/Mines -7/Zion -6/Proximity Caves History --------- Turn | Location | Event 26 | -11/Scrapyard | Discovered new exit (range 15) 68 | -11/Scrapyard | Entered Materials 203 | -10/Materials | Discovered new exit (range 7) 316 | -10/Materials | Build established: Mutant 357 | -10/Materials | Discovered new exit (range 7) 420 | -10/Materials | Identified exit to Mines 493 | -10/Materials | Entered Mines 573 | -10/Mines | Learned location of Storage (-7) 574 | -10/Mines | Assembled infested the area 722 | -10/Mines | Found a damaged Exp. Sensor Array with a note attached 727 | -10/Mines | Found Prototype Device 728 | -10/Mines | Identified Exp. Sensor Array 966 | -10/Mines | Discovered new exit (range 15) 1024 | -10/Mines | Learned location of 1 exit from Materials 1045 | -10/Mines | Core integrity fell below 50% 1108 | -10/Mines | Met a Derelict who couldn't figure out how to use a Trap Extractor 1200 | -10/Mines | Entered Materials 1200 | -9/Materials | Evolved 2 slots: Utility x2 1201 | -9/Materials | Identified exit to Materials 1526 | -9/Materials | Lost 6 parts (1p2n3w) 1714 | -9/Materials | Core integrity fell below 50% 2403 | -9/Materials | Build established: Scavenger-Mutant 2425 | -9/Materials | Discovered new exit (range 8) 2795 | -9/Materials | Discovered exit to Materials (range 16) 3518 | -9/Materials | Discovered new exit (range 3) 3530 | -9/Materials | Discovered exit to Materials (range 16) 4085 | -9/Materials | Entered Mines 4111 | -9/Mines | Build established: Mutant 4118 | -9/Mines | A Derelict revealed a hidden shortcut to a safe place 4155 | -9/Mines | Entered Zion 4304 | -7/Zion | Learned Factory trap positions 4319 | -7/Zion | Identified exit to Proximity Caves 6154 | -7/Zion | Found Prototype Special Weapon 6155 | -7/Zion | Identified RU-N14's Throwing Claymores 6159 | -7/Zion | Found RU-N14's Throwing Claymores 6163 | -7/Zion | Found RU-N14's Throwing Claymores 6167 | -7/Zion | Found RU-N14's Throwing Claymores 6251 | -7/Zion | Found Prototype Launcher 6253 | -7/Zion | Identified Gui. Missile Launcher 6567 | -7/Zion | Imprinted 6570 | -7/Zion | Declared Zion's savior 6986 | -7/Zion | Learned location of Armory (-3) 7104 | -7/Zion | Found Prototype Device 7170 | -7/Zion | Given A8's code to call for help 7221 | -7/Zion | Entered Proximity Caves 7221 | -6/Proximity Caves | Accompanied by 4 allies 7530 | -6/Proximity Caves | Core integrity fell below 20% 7541 | -6/Proximity Caves | Attracted the attention of an 0b10 base 7549 | -6/Proximity Caves | Destroyed by Y-64 Sentinel with Wave Gun Last Messages --------------- 07524_ IH-TVC(M) destroyed. 07527_ Autogun fries itself beyond repair. 07531_ S-27 Virus destroyed. 07531_ Machine disabled. 07534_ G-50 Soldier destroyed. 07534_ Destroyed Lgt. Angular Momentum Engine. 07535_ VTOL Module fries itself beyond repair. 07537_ G-50 Soldier destroyed. 07540_ Destroyed VTOL Module. 07540_ Imp. Heat Sink destroyed. 07540_ Hvy. Riot Gun destroyed. 07541_ Carbon-fiber Leg fries itself beyond repair. 07541_ Hvy. Rocket Launcher destroyed. 07542_ Mak. Power Source destroyed. 07546_ Destroyed Autogun. 07546_ G-50 Soldier Hvy. Laser severed. 07546_ G-50 Soldier destroyed. 07546_ S-27 Virus destroyed. 07546_ Penetrated by Slug. 07549_ Critical hit (Burn: +37). Map ----- +----------------------------------------------------+ | ?????????????????????????????????????????????????? | | ?????????????????????????????????????????????????? | | ?????????????????????????????????????????????????? | | ?????????????????????????????????????????????????? | | ?????????????????????????????????????????????????? | | ??????????????????????????????#####??????????????? | | ?????????????????????????????#######?????????????? | | ?????????????????############## ###?????????????? | | ?????????????????############# #####??????????? | | ?????????????????## ## ## #####??????????? | | ?################## ??????????? | | ?################## ??????????? | | ?## ## ###++#??????????? | | ### ########### # ??????????? | | ### ########### ## ????????????? | | ##??????### #### ##???""???????? | | ##??????## ### """ ????????? | | ######??????## ??????????? | | ######??????### == = # ??????????? | | ##??????????#### % g/ ??????????? | | ##???????????#### g ??????????? | | ###?######????#### g "?????????? | | ###?#########??### %[ ???????????? | | #### #####???## #"?????????????? | | #### ##???## ## ##??##"????????? | | ##### ##??? ### @ #"????????? | | ##### ### ## Y #"????????? | | ### ### ## # ###//###????????? | | ## ### ?## ## ? ?????????? | | ## ### ??## ### ?????????? | | ###### ???## ?### ####??? ??????????? | | #####?????????## ?##########??????????????? | | #####??????????## ????######????????????????? | | ###????????????## ??????????????????????????? | | ## ###?????????????????????????????????????????? | | ### ###????????????????????????????????????????? | | ### ##????????????????????????????????????????? | | #######????????????????????????????????????????? | | ######????????????????????????????????????????? | | ##???????????????????????????????????????????? | | ####???????????????????????????????????????????? | | ######???????????????????????????????????????????? | | ####?????????????????????????????????????????????? | | #????????????????????????????????????????????????? | | ?????????????????????????????????????????????????? | | ?????????????????????????????????????????????????? | | ?????????????????????????????????????????????????? | | ?????????????????????????????????????????????????? | | ?????????????????????????????????????????????????? | | ?????????????????????????????????????????????????? | +----------------------------------------------------+ Best States ------------- Heat Dissipation 42 Energy Generation 15 Energy Capacity 265 Matter Stores 300 Matter Capacity 300 Sight Range 16 Robot Scan Range 14 Terrain Scan Density 10 Armor Coverage 225 Evasion (%) 55 Recoil Reduction 2 Authchip Count 1 Item Schematics ----------------- ECM Suite | -10/Materials | Hacked Exp. Sensor Array | -9/Materials | Scanalyzed Imp. Treads | -9/Materials | Hacked Field Laser | -9/Materials | Scanalyzed Hvy. Hammer | -9/Materials | Scanalyzed Weapon Cycler | -7/Zion | Archive Beamcaster | -7/Zion | Archive Phase Cannon | -7/Zion | Archive Imp. Cooling System | -7/Zion | Archive Imp. Cryofiber Web | -7/Zion | Archive Imp. Carbon-fiber Leg | -7/Zion | Archive Imp. Weapon Cycler | -7/Zion | Archive Mak. Power Source | -7/Zion | Archive Imp. Hardlight Generator | -7/Zion | Archive Hvy. Rocket Launcher | -7/Zion | Archive Recalibrator | -7/Zion | Archive Angular Momentum Engine | -7/Zion | Archive Hvy. Missile Launcher | -7/Zion | Archive Adv. Shield Generator | -7/Zion | Archive Robot Schematics ------------------ D-53 Grenadier | -7/Zion | Archive R-06 Scavenger | -7/Zion | Archive D-83 Annihilator | -7/Zion | Archive Fabricated ------------ Nothing Alien Tech Used ----------------- None Achievements -------------- None Challenges ------------ None Game ------ Seed TachyonWeldingSabre Manual? 0 Play Time 00:59:53 Cumulative 95.3 hours Start 2022.05.08 @ 21:03:31 End 2022.06.04 @ 00:24:57 Sessions 15 Manual Loads 0 Difficulty Rogue Special Mode None Game No. 69 Rogue 69 Adventurer 0 Explorer 0 Win Type - Total 0 Types 0/0/0/0/0/0/0/0/0 Lore% 25 Gallery% 44 Achievement% 34 Wizard Run 0 Options --------- ASCII 0 Keyboard 0 Movement Mouse Keybinds 0 Fullscreen 2 Font 24/Smallcaps Map View 113x50 Tactical HUD 1 Map Filters NONE Filters NONE Steam 1 RUN: fdf6e465-4d62-40ff-bdb7-98f98cf8caea